[Event "LJ Slovak Open 2022"]
[Site "Liptovsky Jan"]
[Date "2022.06.26"]
[Round "6.54"]
[White "Pechociakova, Petra"]
[Black "Magda, Juraj"]
[Result "1-0"]
[ECO "B30"]
[WhiteElo "1160"]
[BlackElo "1301"]
[Annotator "NA RC"]
[PlyCount "51"]
[EventDate "2022.06.23"]
[EventType "swiss"]
[EventCountry "SVK"]
[SourceTitle "playchess.com"]
[Source "ChessBase"]
[SourceQuality "1"]
[TimeControl "3600+30"]

1. e4 {[%emt 0:00:02]} c5 {[%emt 0:00:12]} 2. Nf3 {[%emt 0:00:18]} d6 {[%emt 0:00:15]} 3. h3 {[%emt 0:00:19]} Nc6 {[%emt 0:00:09]} 4. c4 {[%emt 0:00:12]} g6 {[%emt 0:00:23]} 5. Nc3 {[%emt 0:00:48]} Bg7 {[%emt 0:00:08]} 6. Be2 {[%emt 0:02:53]} Nf6 {[%emt 0:00:09]} 7. O-O {[%emt 0:00:12]} O-O {[%emt 0:00:09]} 8. d3 {[%emt 0:00:54]} Bd7 {[%emt 0:00:26]} 9. Be3 {[%emt 0:00:59]} Qb6 {[%emt 0:04:15]} 10. Na4 {[%emt 0:02:33]} Qd8 {[%emt 0:02:06]} 11. Qd2 {[%emt 0:01:44]} Nb4 {[%emt 0:04:40]} 12. a3 {[%emt 0:02:43]} Nxd3 {[%emt 0:04:03]} 13. Bxd3 {[%emt 0:03:31]} Bxa4 {[%emt 0:00:11]} 14. Bh6 {[%emt 0:01:47]} Bc6 {[%emt 0:00:40]} 15. Bxg7 {[%emt 0:01:11]} Kxg7 {[%emt 0:00:16]} 16. Rae1 {[%emt 0:00:36]} Rb8 {[%emt 0:03:03]} 17. Nh4 {[%emt 0:03:11]} e6 {[%emt 0:04:27]} 18. e5 {[%emt 0:03:40]} dxe5 {[%emt 0:01:17]} 19. Rxe5 {[%emt 0:00:17]} Nd7 {[%emt 0:00:30]} 20. Rg5 {[%emt 0:01:31]} Qf6 {[%emt 0:05:58]} 21. Re1 {[%emt 0:05:00]} h6 {[%emt 0:03:02]} 22. Rg4 {[%emt 0:02:22]} e5 {[%emt 0:04:23]} 23. Nf5+ {[%emt 0:00:57]} Kh7 {[%emt 0:05:58]} 24. Qxh6+ {[%emt 0:00:36]} Kg8 {[%emt 0:00:08]} 25. Rh4 {[%emt 0:01:04]} gxf5 {[%emt 0:07:10]} 26. Qh7# {[%emt 0:00:22]} 1-0

[Event "LJ Slovak Open 2022"]
[Site "Liptovsky Jan"]
[Date "2022.06.26"]
[Round "6.55"]
[White "Socha, Wiktor"]
[Black "Papay Aurel"]
[Result "1-0"]
[ECO "C01"]
[WhiteElo "1020"]
[BlackElo "1294"]
[Annotator "NA RC"]
[PlyCount "44"]
[EventDate "2022.06.23"]
[EventType "swiss"]
[EventCountry "SVK"]
[SourceTitle "playchess.com"]
[Source "ChessBase"]
[SourceQuality "1"]
[TimeControl "3600+30"]

1. e4 {[%emt 0:02:33]} e6 {[%emt 0:00:18]} 2. d4 {[%emt 0:00:12]} d5 {[%emt 0:00:15]} 3. exd5 {[%emt 0:00:23]} exd5 {[%emt 0:00:08]} 4. Nf3 {[%emt 0:00:04]} Bd6 {[%emt 0:00:33]} 5. Nc3 {[%emt 0:01:06]} Ne7 {[%emt 0:00:31]} 6. Bd3 {[%emt 0:00:41]} c6 {[%emt 0:01:39]} 7. Be3 {[%emt 0:01:27]} O-O {[%emt 0:01:45]} 8. O-O {[%emt 0:00:07]} Re8 {[%emt 0:00:25]} 9. Re1 {[%emt 0:00:46]} Bf5 {[%emt 0:02:49]} 10. Ne2 {[%emt 0:03:58]} Qc7 {[%emt 0:05:12]} 11. g3 {[%emt 0:02:56]} Bxd3 {[%emt 0:05:34]} 12. Qxd3 {[%emt 0:00:34]} Ng6 {[%emt 0:02:01]} 13. Rac1 {[%emt 0:02:34]} Nd7 {[%emt 0:01:13]} 14. c4 {[%emt 0:00:59]} dxc4 {[%emt 0:10:00]} 15. Rxc4 {[%emt 0:01:31]} Nf6 {[%emt 0:03:17]} 16. Rcc1 {[%emt 0:03:40]} Qa5 {[%emt 0:02:24]} 17. a3 {[%emt 0:02:41]} Rad8 {[%emt 0:01:50]} 18. b4 {[%emt 0:01:34]} Qh5 {[%emt 0:02:12]} 19. Kg2 {[%emt 0:09:28]} Ne5 {[%emt 0:22:51]} 20. Bd2 {[%emt 0:07:03]} Nfg4 {[%emt 0:01:37]} 21. h3 {[%emt 0:05:39]} f6 {[%emt 0:00:28]} 22. Nxe5 {[%emt 0:02:41]} Qh6 {[%emt 0:02:21]} 1-0

[Event "LJ Slovak Open 2022"]
[Site "Liptovsky Jan"]
[Date "2022.06.26"]
[Round "6.56"]
[White "Szaszak, Matej"]
[Black "Sotnik, Simon"]
[Result "0-1"]
[ECO "B20"]
[WhiteElo "1235"]
[BlackElo "1038"]
[Annotator "NA RC"]
[PlyCount "93"]
[EventDate "2022.06.23"]
[EventType "swiss"]
[EventCountry "SVK"]
[SourceTitle "playchess.com"]
[Source "ChessBase"]
[SourceQuality "1"]
[TimeControl "3600+30"]

1. e4 {[%emt 0:00:02]} c5 {[%emt 0:00:17]} 2. Bc4 {[%emt 0:00:06]} g6 {[%emt 0:02:16]} 3. b3 {[%emt 0:00:13]} Bg7 {[%emt 0:01:39]} 4. Nc3 {[%emt 0:00:08]} Nc6 {[%emt 0:02:52]} 5. Bb2 {[%emt 0:00:09]} e6 {[%emt 0:00:30]} 6. Na4 {[%emt 0:01:08]} Bxb2 {[%emt 0:00:50]} 7. Nxb2 {[%emt 0:00:10]} Nf6 {[%emt 0:04:56]} 8. d3 {[%emt 0:00:56]} a6 {[%emt 0:01:13]} 9. a4 {[%emt 0:02:32]} d5 {[%emt 0:01:42]} 10. exd5 {[%emt 0:00:15]} exd5 {[%emt 0:00:29]} 11. Qe2+ {[%emt 0:00:08]} Qe7 {[%emt 0:00:27]} 12. Qxe7+ {[%emt 0:00:10]} Nxe7 {[%emt 0:00:11]} 13. Nf3 {[%emt 0:01:11]} dxc4 {[%emt 0:00:20]} 14. Nxc4 {[%emt 0:00:13]} Bg4 {[%emt 0:01:52]} 15. Nfe5 {[%emt 0:00:13]} Rd8 {[%emt 0:02:51]} 16. Ne3 {[%emt 0:02:01]} Bf5 {[%emt 0:01:09]} 17. O-O {[%emt 0:00:54]} O-O {[%emt 0:00:07]} 18. Rae1 {[%emt 0:00:10]} Ned5 {[%emt 0:02:57]} 19. c4 {[%emt 0:03:11]} Nxe3 {[%emt 0:00:58]} 20. Rxe3 {[%emt 0:00:09]} Rfe8 {[%emt 0:03:24]} 21. Rfe1 {[%emt 0:01:58]} Nd7 {[%emt 0:10:15]} 22. Nxd7 {[%emt 0:02:04]} Bxd7 {[%emt 0:00:15]} 23. Rxe8+ {[%emt 0:00:12]} Rxe8 {[%emt 0:00:18]} 24. Rxe8+ {[%emt 0:00:06]} Bxe8 {[%emt 0:00:03]} 25. Kf1 {[%emt 0:00:19]} Bc6 {[%emt 0:00:40]} 26. a5 {[%emt 0:00:29]} Kf8 {[%emt 0:01:19]} 27. g3 {[%emt 0:01:38]} Ke7 {[%emt 0:01:52]} 28. Ke2 {[%emt 0:00:55]} Kd6 {[%emt 0:00:44]} 29. Ke3 {[%emt 0:00:24]} f5 {[%emt 0:00:54]} 30. f4 {[%emt 0:01:10]} h6 {[%emt 0:00:15]} 31. d4 {[%emt 0:00:37]} g5 {[%emt 0:01:40]} 32. h3 {[%emt 0:02:31]} cxd4+ {[%emt 0:01:37]} 33. Kxd4 {[%emt 0:00:21]} gxf4 {[%emt 0:00:25]} 34. gxf4 {[%emt 0:00:22]} Kc7 {[%emt 0:00:38]} 35. c5 {[%emt 0:00:37]} Bg2 {[%emt 0:02:52]} 36. h4 {[%emt 0:00:20]} h5 {[%emt 0:00:14]} 37. b4 {[%emt 0:01:38]} Kc6 {[%emt 0:00:22]} 38. Ke5 {[%emt 0:02:14]} Bh3 {[%emt 0:02:08]} 39. Kd4 {[%emt 0:02:35]} Kb5 {[%emt 0:00:22]} 40. Kc3 {[%emt 0:00:15]} Bg2 {[%emt 0:00:33]} 41. Kb3 {[%emt 0:02:38]} Bd5+ {[%emt 0:00:17]} 42. Ka3 {[%emt 0:05:36]} Be4 {[%emt 0:00:30]} 43. Kb3 {[%emt 0:01:32]} Bf3 {[%emt 0:01:34]} 44. Kc3 {[%emt 0:00:58]} Bd1 {[%emt 0:00:46]} 45. Kd2 {[%emt 0:00:10]} Ba4 {[%emt 0:01:18]} 46. Kc3 {[%emt 0:00:41]} Bd1 {[%emt 0:00:28]} 47. c6 {[%emt 0:00:00]} 0-1

[Event "LJ Slovak Open 2022"]
[Site "Liptovsky Jan"]
[Date "2022.06.26"]
[Round "6.57"]
[White "Polackova, Eva"]
[Black "Stricova Julia Nela"]
[Result "1-0"]
[ECO "C65"]
[WhiteElo "1253"]
[BlackElo "1149"]
[Annotator "NA RC"]
[PlyCount "49"]
[EventDate "2022.06.23"]
[EventType "swiss"]
[EventCountry "SVK"]
[SourceTitle "playchess.com"]
[Source "ChessBase"]
[SourceQuality "1"]
[TimeControl "3600+30"]

1. e4 {[%emt 0:00:04]} e5 {[%emt 0:00:04]} 2. Nf3 {[%emt 0:00:31]} Nc6 {[%emt 0:00:07]} 3. Bb5 {[%emt 0:00:23]} Nf6 {[%emt 0:01:09]} 4. O-O {[%emt 0:01:59]} a6 {[%emt 0:01:08]} 5. Bxc6 {[%emt 0:01:19]} bxc6 {[%emt 0:00:24]} 6. Nxe5 {[%emt 0:00:43]} Bd6 {[%emt 0:01:11]} 7. Nf3 {[%emt 0:01:13]} Be7 {[%emt 0:03:45]} 8. Nc3 {[%emt 0:01:33]} O-O {[%emt 0:01:47]} 9. d4 {[%emt 0:04:24]} Bb4 {[%emt 0:00:53]} 10. Bg5 {[%emt 0:00:42]} Bxc3 {[%emt 0:02:02]} 11. bxc3 {[%emt 0:00:16]} d6 {[%emt 0:02:04]} 12. Qe2 {[%emt 0:01:44]} Bg4 {[%emt 0:00:21]} 13. e5 {[%emt 0:00:38]} Bxf3 {[%emt 0:00:38]} 14. Qxf3 {[%emt 0:00:23]} dxe5 {[%emt 0:00:57]} 15. dxe5 {[%emt 0:00:25]} Qd5 {[%emt 0:02:09]} 16. exf6 {[%emt 0:00:32]} Qxf3 {[%emt 0:00:12]} 17. gxf3 {[%emt 0:00:29]} g6 {[%emt 0:00:58]} 18. Rfe1 {[%emt 0:02:25]} Rfd8 {[%emt 0:00:31]} 19. Re7 {[%emt 0:01:47]} Rac8 {[%emt 0:01:04]} 20. Bf4 {[%emt 0:01:23]} Rd5 {[%emt 0:00:49]} 21. Rae1 {[%emt 0:00:40]} Kf8 {[%emt 0:00:41]} 22. Bxc7 {[%emt 0:03:33]} Rb5 {[%emt 0:01:00]} 23. Bd6 {[%emt 0:00:44]} Kg8 {[%emt 0:01:30]} 24. Re8+ {[%emt 0:00:20]} Rxe8 {[%emt 0:00:11]} 25. Rxe8# {[%emt 0:00:15]} 1-0

[Event "LJ Slovak Open 2022"]
[Site "Liptovsky Jan"]
[Date "2022.06.26"]
[Round "6.58"]
[White "Haasova, Nina"]
[Black "Moravcik Alex"]
[Result "1-0"]
[ECO "D02"]
[WhiteElo "1216"]
[BlackElo "1000"]
[Annotator "NA RC"]
[PlyCount "111"]
[EventDate "2022.06.23"]
[EventType "swiss"]
[EventCountry "SVK"]
[SourceTitle "playchess.com"]
[Source "ChessBase"]
[SourceQuality "1"]
[TimeControl "3600+30"]

1. d4 {[%emt 0:00:03]} d5 {[%emt 0:00:11]} 2. Nf3 {[%emt 0:00:16]} Nc6 {[%emt 0:00:19]} 3. e3 {[%emt 0:00:18]} a6 {[%emt 0:00:34]} 4. c3 {[%emt 0:00:21]} Bg4 {[%emt 0:00:14]} 5. Be2 {[%emt 0:00:24]} Bxf3 {[%emt 0:00:16]} 6. Bxf3 {[%emt 0:00:22]} Nf6 {[%emt 0:00:24]} 7. O-O {[%emt 0:00:21]} e5 {[%emt 0:00:18]} 8. dxe5 {[%emt 0:01:24]} Nxe5 {[%emt 0:00:24]} 9. Be2 {[%emt 0:00:55]} Bc5 {[%emt 0:00:25]} 10. b3 {[%emt 0:00:32]} O-O {[%emt 0:00:45]} 11. Nd2 {[%emt 0:01:15]} Bd6 {[%emt 0:00:27]} 12. c4 {[%emt 0:00:47]} c6 {[%emt 0:00:23]} 13. cxd5 {[%emt 0:01:50]} cxd5 {[%emt 0:00:31]} 14. Bb2 {[%emt 0:00:51]} Rc8 {[%emt 0:01:36]} 15. Rc1 {[%emt 0:00:40]} Rxc1 {[%emt 0:00:42]} 16. Qxc1 {[%emt 0:00:11]} Nfg4 {[%emt 0:00:14]} 17. Bxg4 {[%emt 0:00:48]} Nxg4 {[%emt 0:00:14]} 18. Qc3 {[%emt 0:00:42]} Be5 {[%emt 0:01:28]} 19. Qc2 {[%emt 0:00:51]} Qh4 {[%emt 0:00:42]} 20. h3 {[%emt 0:00:50]} h6 {[%emt 0:02:07]} 21. Nf3 {[%emt 0:01:05]} Qf6 {[%emt 0:00:37]} 22. Nxe5 {[%emt 0:01:24]} Nxe5 {[%emt 0:00:37]} 23. f4 {[%emt 0:00:47]} Nf3+ {[%emt 0:01:51]} 24. Rxf3 {[%emt 0:00:37]} Qh4 {[%emt 0:00:23]} 25. Qc3 {[%emt 0:00:55]} f6 {[%emt 0:00:22]} 26. Rf1 {[%emt 0:01:01]} Re8 {[%emt 0:01:14]} 27. Qd4 {[%emt 0:01:03]} Qg3 {[%emt 0:00:58]} 28. Rf3 {[%emt 0:02:01]} Qe1+ {[%emt 0:01:01]} 29. Kh2 {[%emt 0:00:16]} Qe2 {[%emt 0:00:24]} 30. Qxd5+ {[%emt 0:01:36]} Kh8 {[%emt 0:00:19]} 31. Qd4 {[%emt 0:00:35]} Rf8 {[%emt 0:01:08]} 32. e4 {[%emt 0:01:01]} Rc8 {[%emt 0:00:55]} 33. Rc3 {[%emt 0:03:21]} Rxc3 {[%emt 0:00:58]} 34. Bxc3 {[%emt 0:01:26]} Qf1 {[%emt 0:00:33]} 35. f5 {[%emt 0:00:44]} Qf4+ {[%emt 0:00:52]} 36. Kh1 {[%emt 0:00:52]} Qf1+ {[%emt 0:00:23]} 37. Qg1 {[%emt 0:00:32]} Qd3 {[%emt 0:00:24]} 38. Qe1 {[%emt 0:02:16]} b5 {[%emt 0:01:11]} 39. Bb4 {[%emt 0:01:57]} Qc2 {[%emt 0:01:35]} 40. a4 {[%emt 0:01:26]} bxa4 {[%emt 0:00:41]} 41. bxa4 {[%emt 0:00:29]} Qxa4 {[%emt 0:00:17]} 42. Bd2 {[%emt 0:00:27]} a5 {[%emt 0:00:22]} 43. Bxa5 {[%emt 0:00:50]} Qb5 {[%emt 0:00:13]} 44. Bd2 {[%emt 0:00:52]} Qb3 {[%emt 0:04:42]} 45. e5 {[%emt 0:01:40]} fxe5 {[%emt 0:02:54]} 46. Qxe5 {[%emt 0:00:53]} Qd1+ {[%emt 0:03:01]} 47. Qe1 {[%emt 0:00:19]} Qc2 {[%emt 0:01:30]} 48. g4 {[%emt 0:01:36]} Qc6+ {[%emt 0:00:25]} 49. Kg1 {[%emt 0:00:40]} Qc5+ {[%emt 0:03:25]} 50. Qe3 {[%emt 0:00:34]} Qd6 {[%emt 0:03:11]} 51. Bc3 {[%emt 0:01:01]} Qd1+ {[%emt 0:02:04]} 52. Kg2 {[%emt 0:00:21]} Qc2+ {[%emt 0:00:56]} 53. Kg3 {[%emt 0:00:29]} Qd1 {[%emt 0:01:36]} 54. Qe8+ {[%emt 0:00:24]} Kh7 {[%emt 0:00:29]} 55. Qg6+ {[%emt 0:00:14]} Kg8 {[%emt 0:02:28]} 56. Qxg7# {[%emt 0:00:13]} 1-0

[Event "LJ Slovak Open 2022"]
[Site "Liptovsky Jan"]
[Date "2022.06.26"]
[Round "6.59"]
[White "Stricova Viktoria Lea"]
[Black "Magdova, Lucia"]
[Result "0-1"]
[ECO "C55"]
[WhiteElo "1025"]
[BlackElo "1055"]
[Annotator "NA"]
[PlyCount "84"]
[EventDate "2022.06.23"]
[EventType "swiss"]
[EventCountry "SVK"]
[SourceTitle "playchess.com"]
[Source "ChessBase"]
[SourceQuality "1"]
[TimeControl "3600+30"]

1. e4 {[%emt 0:00:11]} e5 {[%emt 0:00:56]} 2. Nf3 {[%emt 0:00:10]} Nc6 {[%emt 0:00:15]} 3. Nc3 {[%emt 0:00:34]} Nf6 {[%emt 0:00:19]} 4. Bc4 {[%emt 0:01:00]} Bb4 {[%emt 0:04:34]} 5. a3 {[%emt 0:00:21]} Bxc3 {[%emt 0:00:35]} 6. dxc3 {[%emt 0:00:26]} Nxe4 {[%emt 0:01:19]} 7. O-O {[%emt 0:01:20]} Nf6 {[%emt 0:01:17]} 8. Bg5 {[%emt 0:01:02]} O-O {[%emt 0:01:01]} 9. Be3 {[%emt 0:03:51]} d6 {[%emt 0:01:33]} 10. h3 {[%emt 0:00:49]} Bf5 {[%emt 0:00:35]} 11. Ng5 {[%emt 0:01:26]} d5 {[%emt 0:01:03]} 12. Bb3 {[%emt 0:02:09]} e4 {[%emt 0:01:24]} 13. f3 {[%emt 0:01:12]} h6 {[%emt 0:04:15]} 14. Bc5 {[%emt 0:02:53]} Ne7 {[%emt 0:02:07]} 15. Qc1 {[%emt 0:04:35]} hxg5 {[%emt 0:01:19]} 16. Qxg5 {[%emt 0:01:49]} b6 {[%emt 0:03:01]} 17. Bd4 {[%emt 0:01:21]} Qd6 {[%emt 0:01:35]} 18. f4 {[%emt 0:04:35]} c5 {[%emt 0:03:31]} 19. Rfe1 {[%emt 0:00:45]} cxd4 {[%emt 0:02:43]} 20. Red1 {[%emt 0:01:08]} Nh7 {[%emt 0:02:58]} 21. Qh4 {[%emt 0:02:16]} e3 {[%emt 0:02:28]} 22. c4 {[%emt 0:01:21]} Be4 {[%emt 0:02:53]} 23. f5 {[%emt 0:03:37]} Nxf5 {[%emt 0:06:46]} 24. Qg4 {[%emt 0:01:22]} Qg3 {[%emt 0:06:29]} 25. Qxg3 {[%emt 0:01:51]} Nxg3 {[%emt 0:00:09]} 26. Re1 {[%emt 0:01:44]} Nf5 {[%emt 0:00:46]} 27. Rf1 {[%emt 0:00:24]} e2 {[%emt 0:01:31]} 28. Rfe1 {[%emt 0:01:20]} Ng3 {[%emt 0:01:02]} 29. Kf2 {[%emt 0:01:06]} Nf5 {[%emt 0:00:38]} 30. Kxe2 {[%emt 0:00:48]} Rfe8 {[%emt 0:00:18]} 31. Kd2 {[%emt 0:00:43]} Bxg2 {[%emt 0:00:21]} 32. Re2 {[%emt 0:01:26]} Rxe2+ {[%emt 0:00:18]} 33. Kxe2 {[%emt 0:00:27]} Re8+ {[%emt 0:00:20]} 34. Kf2 {[%emt 0:00:34]} Bxh3 {[%emt 0:00:07]} 35. Ba4 {[%emt 0:02:23]} Re3 {[%emt 0:00:29]} 36. c3 {[%emt 0:01:00]} dxc3 {[%emt 0:01:45]} 37. bxc3 {[%emt 0:00:25]} dxc4 {[%emt 0:00:17]} 38. Rd1 {[%emt 0:01:30]} Ng5 {[%emt 0:01:01]} 39. Bc2 {[%emt 0:00:55]} Rf3+ {[%emt 0:00:51]} 40. Ke2 {[%emt 0:00:26]} Rxc3 {[%emt 0:02:45]} 41. Rd8+ {[%emt 0:01:31]} Kh7 {[%emt 0:00:20]} 42. Kf2 {[%emt 0:01:41]} Rxc2+ {[%emt 0:00:38]} 0-1

[Event "LJ Slovak Open 2022"]
[Site "Liptovsky Jan"]
[Date "2022.06.26"]
[Round "7.2"]
[White "Varga, Lukas"]
[Black "Ihnat, Marek"]
[Result "1/2-1/2"]
[ECO "B11"]
[WhiteElo "2136"]
[BlackElo "2045"]
[Annotator "RC"]
[PlyCount "25"]
[EventDate "2022.06.23"]
[EventType "swiss"]
[EventCountry "SVK"]
[SourceTitle "playchess.com"]
[Source "ChessBase"]
[SourceQuality "1"]
[TimeControl "3600+30"]

1. e4 {[%emt 0:00:07]} c6 {[%emt 0:00:08]} 2. Nc3 {[%emt 0:01:05]} d5 {[%emt 0:00:03]} 3. Nf3 {[%emt 0:00:05]} dxe4 {[%emt 0:00:08]} 4. Nxe4 {[%emt 0:00:05]} Nf6 {[%emt 0:00:07]} 5. Nxf6+ {[%emt 0:02:55]} exf6 {[%emt 0:00:07]} 6. Bc4 {[%emt 0:01:36]} Bd6 {[%emt 0:00:11]} 7. Qe2+ {[%emt 0:00:10]} Qe7 {[%emt 0:00:07]} 8. Qxe7+ {[%emt 0:01:00]} Kxe7 {[%emt 0:00:02]} 9. O-O {[%emt 0:01:21]} Be6 {[%emt 0:05:04]} 10. Re1 {[%emt 0:00:33]} Kd7 {[%emt 0:08:15]} 11. Bd3 {[%emt 0:02:11]} c5 {[%emt 0:02:04]} 12. b3 {[%emt 0:01:10]} Nc6 {[%emt 0:00:44]} 13. a3 {[%emt 0:11:35]} 1/2-1/2

[Event "LJ Slovak Open 2022"]
[Site "Liptovsky Jan"]
[Date "2022.06.26"]
[Round "7.4"]
[White "Hurtuk, Radovan"]
[Black "Karas, Marek"]
[Result "0-1"]
[ECO "B41"]
[WhiteElo "2057"]
[BlackElo "2292"]
[Annotator "RC"]
[PlyCount "98"]
[EventDate "2022.06.23"]
[EventType "swiss"]
[EventCountry "SVK"]
[SourceTitle "playchess.com"]
[Source "ChessBase"]
[SourceQuality "1"]
[TimeControl "3600+30"]

1. e4 {[%emt 0:00:04]} c5 {[%emt 0:00:06]} 2. Nf3 {[%emt 0:00:11]} e6 {[%emt 0:00:07]} 3. d4 {[%emt 0:00:28]} cxd4 {[%emt 0:00:02]} 4. Nxd4 {[%emt 0:00:13]} a6 {[%emt 0:00:05]} 5. g3 {[%emt 0:01:57]} b5 {[%emt 0:03:55]} 6. Bg2 {[%emt 0:00:10]} Bb7 {[%emt 0:00:12]} 7. O-O {[%emt 0:00:53]} Nc6 {[%emt 0:02:33]} 8. Be3 {[%emt 0:03:49]} Qc7 {[%emt 0:02:46]} 9. a4 {[%emt 0:04:05]} b4 {[%emt 0:00:33]} 10. Nxc6 {[%emt 0:02:17]} Bxc6 {[%emt 0:00:30]} 11. a5 {[%emt 0:00:18]} Nf6 {[%emt 0:01:19]} 12. Bb6 {[%emt 0:01:44]} Qb7 {[%emt 0:00:31]} 13. f3 {[%emt 0:00:14]} Be7 {[%emt 0:04:38]} 14. Nd2 {[%emt 0:01:01]} O-O {[%emt 0:01:24]} 15. Re1 {[%emt 0:00:55]} d6 {[%emt 0:02:50]} 16. Nc4 {[%emt 0:04:10]} d5 {[%emt 0:01:22]} 17. Ne5 {[%emt 0:00:31]} dxe4 {[%emt 0:01:16]} 18. Nxc6 {[%emt 0:00:04]} Qxc6 {[%emt 0:00:12]} 19. fxe4 {[%emt 0:00:12]} Bc5+ {[%emt 0:00:10]} 20. Bxc5 {[%emt 0:00:17]} Qxc5+ {[%emt 0:00:02]} 21. Kh1 {[%emt 0:00:12]} Rfd8 {[%emt 0:01:11]} 22. Qe2 {[%emt 0:00:13]} Qe5 {[%emt 0:01:13]} 23. b3 {[%emt 0:00:27]} h5 {[%emt 0:06:37]} 24. Rad1 {[%emt 0:11:46]} Rdc8 {[%emt 0:03:08]} 25. Rd2 {[%emt 0:05:24]} Rc5 {[%emt 0:00:44]} 26. Qe3 {[%emt 0:02:16]} Rxa5 {[%emt 0:01:15]} 27. Qb6 {[%emt 0:00:39]} Rb8 {[%emt 0:02:17]} 28. Rd8+ {[%emt 0:00:13]} Rxd8 {[%emt 0:00:06]} 29. Qxd8+ {[%emt 0:00:05]} Kh7 {[%emt 0:00:08]} 30. Qe7 {[%emt 0:00:53]} Qc3 {[%emt 0:01:17]} 31. Rf1 {[%emt 0:00:24]} Kg6 {[%emt 0:01:14]} 32. h3 {[%emt 0:04:12]} Ra1 {[%emt 0:02:21]} 33. Rxa1 {[%emt 0:00:47]} Qxa1+ {[%emt 0:00:02]} 34. Kh2 {[%emt 0:00:30]} Qe5 {[%emt 0:02:19]} 35. Qxb4 {[%emt 0:00:15]} h4 {[%emt 0:00:11]} 36. Qe1 {[%emt 0:00:17]} Nh5 {[%emt 0:00:11]} 37. Qe2 {[%emt 0:02:49]} Qxg3+ {[%emt 0:01:25]} 38. Kg1 {[%emt 0:00:21]} Kh6 {[%emt 0:01:35]} 39. Qf2 {[%emt 0:04:22]} Qg5 {[%emt 0:00:54]} 40. c4 {[%emt 0:02:48]} Nf4 {[%emt 0:01:03]} 41. Kh1 {[%emt 0:01:25]} a5 {[%emt 0:02:30]} 42. Bf1 {[%emt 0:04:14]} Nh5 {[%emt 0:01:50]} 43. Bg2 {[%emt 0:02:34]} Ng3+ {[%emt 0:00:46]} 44. Kh2 {[%emt 0:00:54]} f6 {[%emt 0:01:31]} 45. c5 {[%emt 0:00:27]} Qe5 {[%emt 0:00:33]} 46. Kg1 {[%emt 0:00:16]} Qc3 {[%emt 0:00:55]} 47. Qf4+ {[%emt 0:01:50]} Kg6 {[%emt 0:02:21]} 48. Qd6 {[%emt 0:01:09]} Qe1+ {[%emt 0:01:07]} 49. Kh2 {[%emt 0:00:24]} Ne2 {[%emt 0:00:14]} 0-1

[Event "LJ Slovak Open 2022"]
[Site "Liptovsky Jan"]
[Date "2022.06.26"]
[Round "7.5"]
[White "Giertli, Vladimir"]
[Black "Holly, Andrej"]
[Result "1-0"]
[ECO "E60"]
[WhiteElo "1988"]
[BlackElo "2214"]
[Annotator "RC"]
[PlyCount "89"]
[EventDate "2022.06.23"]
[EventType "swiss"]
[EventCountry "SVK"]
[SourceTitle "playchess.com"]
[Source "ChessBase"]
[SourceQuality "1"]
[TimeControl "3600+30"]

1. Nf3 {[%emt 0:04:40]} Nf6 {[%emt 0:00:24]} 2. b3 {[%emt 0:00:19]} g6 {[%emt 0:00:05]} 3. Bb2 {[%emt 0:00:03]} Bg7 {[%emt 0:00:02]} 4. g3 {[%emt 0:00:30]} O-O {[%emt 0:00:06]} 5. Bg2 {[%emt 0:00:11]} d6 {[%emt 0:00:26]} 6. d4 {[%emt 0:00:25]} c6 {[%emt 0:00:27]} 7. Nbd2 {[%emt 0:00:30]} Qc7 {[%emt 0:00:13]} 8. O-O {[%emt 0:00:58]} Nbd7 {[%emt 0:00:16]} 9. c4 {[%emt 0:00:55]} e5 {[%emt 0:00:20]} 10. Qc2 {[%emt 0:01:16]} Re8 {[%emt 0:00:24]} 11. e3 {[%emt 0:00:52]} h6 {[%emt 0:04:49]} 12. a4 {[%emt 0:00:39]} Nf8 {[%emt 0:00:54]} 13. c5 {[%emt 0:01:31]} e4 {[%emt 0:00:11]} 14. cxd6 {[%emt 0:00:05]} Qxd6 {[%emt 0:00:09]} 15. Ne5 {[%emt 0:01:04]} Qe6 {[%emt 0:06:48]} 16. a5 {[%emt 0:05:40]} N8d7 {[%emt 0:01:15]} 17. a6 {[%emt 0:04:17]} Nxe5 {[%emt 0:01:17]} 18. dxe5 {[%emt 0:01:02]} Nd7 {[%emt 0:01:04]} 19. axb7 {[%emt 0:00:14]} Bxb7 {[%emt 0:00:05]} 20. Nxe4 {[%emt 0:00:25]} Bxe5 {[%emt 0:01:23]} 21. Bxe5 {[%emt 0:01:14]} Qxe5 {[%emt 0:00:54]} 22. Rfd1 {[%emt 0:00:40]} c5 {[%emt 0:10:45]} 23. Nf6+ {[%emt 0:01:02]} Qxf6 {[%emt 0:02:13]} 24. Bxb7 {[%emt 0:00:23]} Rad8 {[%emt 0:01:33]} 25. Rxa7 {[%emt 0:01:42]} Qb6 {[%emt 0:04:46]} 26. Rda1 {[%emt 0:00:02]} Ne5 {[%emt 0:01:36]} 27. Bg2 {[%emt 0:00:57]} Qb4 {[%emt 0:03:04]} 28. Rd1 {[%emt 0:06:20]} Rb8 {[%emt 0:03:14]} 29. Bd5 {[%emt 0:01:55]} Qb6 {[%emt 0:00:01]} 30. Rda1 {[%emt 0:01:05]} Red8 {[%emt 0:00:51]} 31. e4 {[%emt 0:04:08]} Nf3+ {[%emt 0:02:31]} 32. Kh1 {[%emt 0:02:27]} Rf8 {[%emt 0:01:48]} 33. R7a6 {[%emt 0:01:22]} Qc7 {[%emt 0:02:56]} 34. Rxg6+ {[%emt 0:01:00]} Kh7 {[%emt 0:00:02]} 35. Rc6 {[%emt 0:01:47]} Qe5 {[%emt 0:00:16]} 36. Raa6 {[%emt 0:00:12]} Kg7 {[%emt 0:01:41]} 37. Qxc5 {[%emt 0:03:55]} Ra8 {[%emt 0:00:56]} 38. Qc1 {[%emt 0:02:23]} f6 {[%emt 0:02:50]} 39. Rc7+ {[%emt 0:00:20]} Kg6 {[%emt 0:00:06]} 40. Rxa8 {[%emt 0:00:30]} Rxa8 {[%emt 0:00:40]} 41. Bxa8 {[%emt 0:00:03]} Qh5 {[%emt 0:00:19]} 42. h4 {[%emt 0:01:52]} Qg4 {[%emt 0:00:20]} 43. Kg2 {[%emt 0:09:48]} Nxh4+ {[%emt 0:00:45]} 44. Kf1 {[%emt 0:00:28]} Nf3 {[%emt 0:00:25]} 45. e5 {[%emt 0:01:30]} 1-0